Workbook

Sheet 2024-2025年度昆山市耕地生态轮作、扩种油菜项目核查结果
A1: 2024-2025年度昆山市耕地生态轮作、扩种油菜项目核查结果及补助公示表
P2: 单位：元、亩
A3: 区镇 | B3: 村/社区 | C3: 申报对象 | D3: 申报类别 | E3: 申报面积 | F3: 核定面积 | G3: 核减面积 | H3: 应补助总金额 | I3: 纳入2024-2025扩种油菜补助项目面积 | J3: 2024-2025年扩种油菜应补助金额 | K3: 纳入2024-2025扩种油菜已预补助项目面积 | L3: 2024-2025年扩种油菜预补助金额 | M3: 2024-2025年扩种油菜剩余补助金额 | N3: 纳入2025扩种油菜补助项目面积 | O3: 2025年扩种油菜补助金额 | P3: 纳入2024-2025耕地生态轮作补助面积 | Q3: 2024-2025耕地生态轮作补助金额
A4: 开发区 | B4: 广志社区 | C4: 季阿毛 | D4: 油菜 | E4: 42.7 | F4: 27.99 | G4: 14.71 | H4: =F4*400 -> 11196 | I4: 0 | J4: 0 | K4: 0 | L4: 0 | M4: 0 | N4: 27.99 | O4: =N4*400 -> 11196 | P4: =F4-I4-N4 -> 0 | Q4: =P4*400 -> 0
B5: 广志社区 | C5: 邱惠弟 | D5: 油菜 | E5: 45 | F5: 35.2 | G5: 9.8 | H5: 14080 | I5: 0 | J5: 0 | K5: 0 | L5: 0 | M5: 0 | N5: 35.2 | O5: 14080 | P5: 0 | Q5: 0
B6: 广志社区 | C6: 郑建芬 | D6: 油菜 | E6: 82.3 | F6: 74.31 | G6: 7.99 | H6: 29724 | I6: 0 | J6: 0 | K6: 0 | L6: 0 | M6: 0 | N6: =74.31-24.71 -> 49.6 | O6: 19840 | P6: 24.71 | Q6: 9884
B7: 孔巷社区 | C7: 高文峰 | D7: 油菜 | E7: 20 | F7: 0 | G7: 20 | H7: 0 | I7: 0 | J7: 0 | K7: 0 | L7: 0 | M7: 0 | N7: 0 | O7: 0 | P7: 0 | Q7: 0
B8: 孔巷社区 | C8: 胡露露 | D8: 油菜 | E8: 66 | F8: 14.83 | G8: 51.17 | H8: 5932 | I8: 0 | J8: 0 | K8: 0 | L8: 0 | M8: 0 | N8: 14.83 | O8: 5932 | P8: 0 | Q8: 0
B9: 孔巷社区 | C9: 马建林 | D9: 油菜 | E9: 135 | F9: 121.42 | G9: 13.58 | H9: 48568 | I9: 0 | J9: 0 | K9: 0 | L9: 0 | M9: 0 | N9: 121.42 | O9: 48568 | P9: 0 | Q9: 0
B10: 孔巷社区 | C10: 韦仕林 | D10: 油菜 | E10: 60 | F10: 60 | G10: 0 | H10: 24000 | I10: 0 | J10: 0 | K10: 0 | L10: 0 | M10: 0 | N10: 60 | O10: 24000 | P10: 0 | Q10: 0
B11: 孔巷社区 | C11: 张明照 | D11: 油菜 | E11: 222 | F11: 173.05 | G11: 48.95 | H11: 69220 | I11: 0 | J11: 0 | K11: 0 | L11: 0 | M11: 0 | N11: 173.05 | O11: 69220 | P11: 0 | Q11: 0
B12: 蓬莱社区 | C12: 胡萍 | D12: 油菜 | E12: 20 | F12: 14.77 | G12: 5.23 | H12: 5908 | I12: 0 | J12: 0 | K12: 0 | L12: 0 | M12: 0 | N12: 14.77 | O12: 5908 | P12: 0 | Q12: 0
B13: 蓬朗社区 | C13: 俞剑章 | D13: 油菜 | E13: 100 | F13: 100 | G13: 0 | H13: 40000 | I13: 0 | J13: 0 | K13: 0 | L13: 0 | M13: 0 | N13: 100 | O13: 40000 | P13: 0 | Q13: 0
B14: 蓬曦社区 | C14: 陈培元 | D14: 油菜 | E14: 76 | F14: 76 | G14: 0 | H14: 30400 | I14: 0 | J14: 0 | K14: 0 | L14: 0 | M14: 0 | N14: 76 | O14: 30400 | P14: 0 | Q14: 0
B15: 蓬曦社区 | C15: 李永能 | D15: 油菜 | E15: 30 | F15: 30 | G15: 0 | H15: 12000 | I15: 0 | J15: 0 | K15: 0 | L15: 0 | M15: 0 | N15: 30 | O15: 12000 | P15: 0 | Q15: 0
B16: 蓬曦社区 | C16: 宛永锁 | D16: 油菜 | E16: 96.5 | F16: 96.5 | G16: 0 | H16: 38600 | I16: 0 | J16: 0 | K16: 0 | L16: 0 | M16: 0 | N16: 96.5 | O16: 38600 | P16: 0 | Q16: 0
B17: 蓬欣社区 | C17: 苏州苏垦现代农业发展有限公司 | D17: 油菜 | E17: 35 | F17: 0 | G17: 35 | H17: 0 | I17: 0 | J17: 0 | K17: 0 | L17: 0 | M17: 0 | N17: 0 | O17: 0 | P17: 0 | Q17: 0
B18: 蓬欣社区 | C18: 汪民文 | D18: 油菜 | E18: 20 | F18: 10.91 | G18: 9.09 | H18: 4364 | I18: 0 | J18: 0 | K18: 0 | L18: 0 | M18: 0 | N18: 10.91 | O18: 4364 | P18: 0 | Q18: 0
B19: 蓬苑社区 | C19: 李正明 | D19: 油菜 | E19: 29.5 | F19: 29.5 | G19: 0 | H19: 11800 | I19: 0 | J19: 0 | K19: 0 | L19: 0 | M19: 0 | N19: 29.5 | O19: 11800 | P19: 0 | Q19: 0
B20: 蓬苑社区 | C20: 钟读凤 | D20: 油菜 | E20: 17 | F20: 17 | G20: 0 | H20: 6800 | I20: 0 | J20: 0 | K20: 0 | L20: 0 | M20: 0 | N20: 17 | O20: 6800 | P20: 0 | Q20: 0
B21: 群益社区 | C21: 昆山壹千农业有限公司 | D21: 油菜 | E21: 176 | F21: 176 | G21: 0 | H21: 70400 | I21: 0 | J21: 0 | K21: 0 | L21: 0 | M21: 0 | N21: 176 | O21: 70400 | P21: 0 | Q21: 0
B22: 夏驾社区 | C22: 姜中国 | D22: 油菜 | E22: 115 | F22: 115 | G22: 0 | H22: 46000 | I22: 0 | J22: 0 | K22: 0 | L22: 0 | M22: 0 | N22: 115 | O22: 46000 | P22: 0 | Q22: 0
B23: 夏驾社区 | C23: 王瑞林 | D23: 油菜 | E23: 60 | F23: 60 | G23: 0 | H23: 24000 | I23: 0 | J23: 0 | K23: 0 | L23: 0 | M23: 0 | N23: 60 | O23: 24000 | P23: 0 | Q23: 0
B24: 夏驾社区 | C24: 朱卫生 | D24: 油菜 | E24: 95 | F24: 95 | G24: 0 | H24: 38000 | I24: 0 | J24: 0 | K24: 0 | L24: 0 | M24: 0 | N24: 95 | O24: 38000 | P24: 0 | Q24: 0
B25: 小计 | E25: =SUM(E4:E24) -> 1543 | F25: 1327.48 | G25: 215.52 | H25: 530992 | I25: 0 | J25: 0 | K25: 0 | L25: =SUM(L4:L24) -> 0 | M25: 0 | N25: 1302.77 | O25: 521108 | P25: 24.71 | Q25: 9884
A26: 高新区 | B26: 大公村 | C26: 江苏昆栗实生态旅游农业开发有限公司 | D26: 油菜 | E26: 482.6 | F26: 482.6 | G26: 0 | H26: =F26*400 -> 193040 | I26: 169.8 | J26: =I26*400 -> 67920 | K26: 169.8 | L26: =I26*150 -> 25470 | M26: =J26-L26 -> 42450 | N26: 312.8 | O26: =N26*400 -> 125120 | P26: =F26-I26-N26 -> 0 | Q26: =P26*400 -> 0
B27: 景村村 | C27: 周青山 | D27: 油菜 | E27: 105 | F27: 105 | G27: 0 | H27: 42000 | I27: 105 | J27: 42000 | K27: 105 | L27: 15750 | M27: 26250 | N27: 0 | O27: 0 | P27: 0 | Q27: 0
B28: 马庄村 | C28: 昆山市玉山镇马庄村农地股份专业合作社 | D28: 油菜 | E28: 143.4 | F28: 143.4 | G28: 0 | H28: 57360 | I28: 0 | J28: 0 | K28: 0 | L28: 0 | M28: 0 | N28: 143.4 | O28: 57360 | P28: 0 | Q28: 0
B29: 庙灯村 | C29: 黄志良 | D29: 油菜 | E29: 115 | F29: 115 | G29: 0 | H29: 46000 | I29: 88 | J29: 35200 | K29: 88 | L29: 13200 | M29: 22000 | N29: 27 | O29: 10800 | P29: 0 | Q29: 0
B30: 庙灯村 | C30: 王根香 | D30: 油菜 | E30: 207 | F30: 207 | G30: 0 | H30: 82800 | I30: 35 | J30: 14000 | K30: 35 | L30: 5250 | M30: 8750 | N30: 172 | O30: 68800 | P30: 0 | Q30: 0
B31: 庙灯村 | C31: 项雪平 | D31: 油菜 | E31: 93.44 | F31: 93.44 | G31: 0 | H31: 37376 | I31: 42 | J31: 16800 | K31: 42 | L31: 6300 | M31: 10500 | N31: 51.44 | O31: 20576 | P31: 0 | Q31: 0
B32: 南星渎村 | C32: 翟晓涛 | D32: 油菜 | E32: 36 | F32: 36 | G32: 0 | H32: 14400 | I32: 0 | J32: 0 | K32: 0 | L32: 0 | M32: 0 | N32: 36 | O32: 14400 | P32: 0 | Q32: 0
B33: 唐龙村 | C33: 盛雪峰 | D33: 油菜 | E33: 110.55 | F33: 110.55 | G33: 0 | H33: 44220 | I33: 110.55 | J33: =I33*400 -> 44220 | K33: 110.55 | L33: =I33*150 -> 16582.5 | M33: =J33-L33 -> 27637.5 | N33: 0 | O33: 0 | P33: 0 | Q33: 0
B34: 新江村 | C34: 向学文 | D34: 油菜 | E34: 75 | F34: 75 | G34: 0 | H34: 30000 | I34: 15 | J34: 6000 | K34: 15 | L34: =I34*150 -> 2250 | M34: 3750 | N34: 60 | O34: 24000 | P34: 0 | Q34: 0
B35: 新生村 | C35: 陈银娟 | D35: 油菜 | E35: 113 | F35: 105.9 | G35: 7.1 | H35: 42360 | I35: 0 | J35: 0 | K35: 0 | L35: 0 | M35: 0 | N35: 105.9 | O35: 42360 | P35: 0 | Q35: 0
B36: 燕桥浜村 | C36: 昆山市玉山镇燕桥浜村农地股份专业合作社 | D36: 油菜 | E36: 458 | F36: 458 | G36: 0 | H36: 183200 | I36: 458 | J36: 183200 | K36: 0 | L36: 0 | M36: 183200 | N36: 0 | O36: 0 | P36: 0 | Q36: 0
B37: 小计 | E37: =SUM(E26:E36) -> 1938.99 | F37: =SUM(F26:F36) -> 1931.89 | G37: =SUM(G26:G36) -> 7.1 | H37: =SUM(H26:H36) -> 772756 | I37: =SUM(I26:I36) -> 1023.35 | J37: 409340 | K37: 565.35 | L37: 84802.5 | M37: 324537.5 | N37: 908.54 | O37: 363416 | P37: 0 | Q37: 0
A38: 花桥镇 | B38: 天福村 | C38: 昆山市花桥国际商务城现代农业发展有限公司 | D38: 油菜 | E38: 1525.49 | F38: 1525.49 | G38: 0 | H38: =F38*400 -> 610196 | I38: 1015.16 | J38: =I38*400 -> 406064 | K38: 1015.16 | L38: =I38*150 -> 152274 | M38: =J38-L38 -> 253790 | N38: 439 | O38: =N38*400 -> 175600 | P38: =F38-I38-N38 -> 71.33 | Q38: =P38*400 -> 28532
B39: 小计 | E39: 1525.49 | F39: 1525.49 | G39: 0 | H39: =F39*400 -> 610196 | I39: 1015.16 | J39: =I39*400 -> 406064 | K39: 1015.16 | L39: =I39*150 -> 152274 | M39: =J39-L39 -> 253790 | N39: 439 | O39: =N39*400 -> 175600 | P39: =F39-I39-N39 -> 71.33 | Q39: =P39*400 -> 28532
A40: 张浦镇 | B40: 白米村 | C40: 昆山市张浦镇白米村农地股份专业合作社 | D40: 油菜 | E40: 810 | F40: 810 | G40: 0 | H40: =F40*400 -> 324000 | I40: 400 | J40: =I40*400 -> 160000 | K40: 400 | L40: =I40*150 -> 60000 | M40: =J40-L40 -> 100000 | N40: 410 | O40: =N40*400 -> 164000 | P40: =F40-I40-N40 -> 0 | Q40: =P40*400 -> 0
B41: 白米村 | C41: 苏州淳和环境科技有限公司 | D41: 油菜 | E41: 8.1 | F41: 8.1 | G41: 0 | H41: 3240 | I41: 0 | J41: 0 | K41: 0 | L41: 0 | M41: 0 | N41: 0 | O41: 0 | P41: 8.1 | Q41: 3240
B42: 大市村 | C42: 昆山市张浦镇椿里农地股份专业合作社 | D42: 油菜 | E42: 210 | F42: 167.53 | G42: 42.47 | H42: 67012 | I42: =167.53-35.62 -> 131.91 | J42: =I42*400 -> 52764 | K42: 210 | L42: =E42*150 -> 31500 | M42: =J42-L42 -> 21264 | N42: 0 | O42: 0 | P42: 35.62 | Q42: 14248
B43: 大市村 | C43: 昆山市张浦镇大市村农地股份专业合作社 | D43: 油菜 | E43: 145 | F43: 59.15 | G43: 85.85 | H43: 23660 | I43: 59.15 | J43: =I43*400 -> 23660 | K43: 145 | L43: =E43*150 -> 21750 | M43: =J43-L43 -> 1910 | N43: 0 | O43: 0 | P43: 0 | Q43: 0
B44: 大直社区 | C44: 何青 | D44: 油菜 | E44: 57.18 | F44: 57.18 | G44: 0 | H44: 22872 | I44: 0 | J44: 0 | K44: 0 | L44: 0 | M44: 0 | N44: 57.18 | O44: 22872 | P44: 0 | Q44: 0
B45: 大直社区 | C45: 向新兵 | D45: 油菜 | E45: 97 | F45: 97 | G45: 0 | H45: 38800 | I45: 0 | J45: 0 | K45: 0 | L45: 0 | M45: 0 | N45: 97 | O45: 38800 | P45: 0 | Q45: 0
B46: 花园社区 | C46: 翟建国 | D46: 油菜 | E46: 35 | F46: 35 | G46: 0 | H46: 14000 | I46: 0 | J46: 0 | K46: 0 | L46: 0 | M46: 0 | N46: 0 | O46: 0 | P46: 35 | Q46: 14000
B47: 姜杭村 | C47: 昆山绿色农产品开发有限公司 | D47: 其他 | E47: 200 | F47: 200 | G47: 0 | H47: 80000 | I47: 0 | J47: 0 | K47: 0 | L47: 0 | M47: 0 | N47: 0 | O47: 0 | P47: 200 | Q47: 80000
B48: 姜杭村 | C48: 昆山绿色农产品开发有限公司 | D48: 油菜 | E48: 70 | F48: 45.54 | G48: 24.46 | H48: 18216 | I48: 0 | J48: 0 | K48: 0 | L48: 0 | M48: 0 | N48: 45.54 | O48: 18216 | P48: 0 | Q48: 0
B49: 金华村 | C49: 龚阿四 | D49: 油菜 | E49: 20 | F49: 20 | G49: 0 | H49: 8000 | I49: 0 | J49: 0 | K49: 0 | L49: 0 | M49: 0 | N49: 0 | O49: 0 | P49: 20 | Q49: 8000
B50: 金华村 | C50: 马梅生 | D50: 油菜 | E50: 20 | F50: 20 | G50: 0 | H50: 8000 | I50: 0 | J50: 0 | K50: 0 | L50: 0 | M50: 0 | N50: 0 | O50: 0 | P50: 20 | Q50: 8000
B51: 金华村 | C51: 宋金林 | D51: 油菜 | E51: 32 | F51: 32 | G51: 0 | H51: 12800 | I51: 0 | J51: 0 | K51: 0 | L51: 0 | M51: 0 | N51: 0 | O51: 0 | P51: 32 | Q51: 12800
B52: 金华村 | C52: 吴存扣 | D52: 油菜 | E52: 46 | F52: 46 | G52: 0 | H52: 18400 | I52: 0 | J52: 0 | K52: 0 | L52: 0 | M52: 0 | N52: 46 | O52: 18400 | P52: 0 | Q52: 0
B53: 金华村 | C53: 徐伟文 | D53: 油菜 | E53: 36 | F53: 36 | G53: 0 | H53: 14400 | I53: 0 | J53: 0 | K53: 0 | L53: 0 | M53: 0 | N53: 36 | O53: 14400 | P53: 0 | Q53: 0
B54: 金华村 | C54: 尹桂生 | D54: 油菜 | E54: 31.7 | F54: 31.7 | G54: 0 | H54: 12680 | I54: 0 | J54: 0 | K54: 0 | L54: 0 | M54: 0 | N54: 0 | O54: 0 | P54: 31.7 | Q54: 12680
B55: 金华村 | C55: 郑兰水 | D55: 油菜 | E55: 124.75 | F55: 124.75 | G55: 0 | H55: 49900 | I55: 100 | J55: =I55*400 -> 40000 | K55: 100 | L55: =I55*150 -> 15000 | M55: =J55-L55 -> 25000 | N55: 0 | O55: 0 | P55: 24.75 | Q55: 9900
B56: 金华村 | C56: 朱正林 | D56: 油菜 | E56: 104 | F56: 104 | G56: 0 | H56: 41600 | I56: 0 | J56: 0 | K56: 0 | L56: 0 | M56: 0 | N56: 104 | O56: 41600 | P56: 0 | Q56: 0
B57: 金华村 | C57: 诸奕炜 | D57: 油菜 | E57: 40 | F57: 30.32 | G57: 9.68 | H57: 12128 | I57: 0 | J57: 0 | K57: 0 | L57: 0 | M57: 0 | N57: 0 | O57: 0 | P57: 30.32 | Q57: 12128
B58: 七桥村 | C58: 江传国 | D58: 油菜 | E58: 68 | F58: 68 | G58: 0 | H58: 27200 | I58: 0 | J58: 0 | K58: 0 | L58: 0 | M58: 0 | N58: 68 | O58: 27200 | P58: 0 | Q58: 0
B59: 七桥村 | C59: 昆山市张浦镇七桥村农地股份专业合作社 | D59: 油菜 | E59: 333 | F59: 333 | G59: 0 | H59: 133200 | I59: 0 | J59: 0 | K59: 0 | L59: 0 | M59: 0 | N59: 333 | O59: 133200 | P59: 0 | Q59: 0
B60: 三家村 | C60: 江传国 | D60: 油菜 | E60: 177.99 | F60: 177.99 | G60: 0 | H60: 71196 | I60: 100 | J60: =I60*400 -> 40000 | K60: 100 | L60: =I60*150 -> 15000 | M60: =J60-L60 -> 25000 | N60: 77.99 | O60: 31196 | P60: 0 | Q60: 0
B61: 尚明甸村 | C61: 昆山市张浦镇尚明甸村农地股份专业合作社 | D61: 油菜 | E61: 552 | F61: 442.82 | G61: 109.18 | H61: 177128 | I61: 442.82 | J61: 177128 | K61: 552 | L61: =E61*150 -> 82800 | M61: 94328 | N61: 0 | O61: 0 | P61: 0 | Q61: 0
B62: 吴加村 | C62: 昆山市张浦镇吴加村农地股份专业合作社 | D62: 油菜 | E62: 100 | F62: 100 | G62: 0 | H62: 40000 | I62: 0 | J62: 0 | K62: 0 | L62: 0 | M62: 0 | N62: 100 | O62: 40000 | P62: 0 | Q62: 0
B63: 新龙村 | C63: 昆山市张浦镇新龙村农地股份专业合作社 | D63: 油菜 | E63: 290.59 | F63: 290.59 | G63: 0 | H63: 116236 | I63: 290.59 | J63: 116236 | K63: 290.59 | L63: 43588.5 | M63: 72647.5 | N63: 0 | O63: 0 | P63: 0 | Q63: 0
B64: 新塘社区 | C64: 丁金泉 | D64: 油菜 | E64: 20 | F64: 20 | G64: 0 | H64: 8000 | I64: 0 | J64: 0 | K64: 0 | L64: 0 | M64: 0 | N64: 0 | O64: 0 | P64: 20 | Q64: 8000
B65: 新塘社区 | C65: 昆山市张浦镇新塘村农地股份专业合作社 | D65: 油菜 | E65: 847.12 | F65: 847.12 | G65: 0 | H65: 338848 | I65: 641.36 | J65: =I65*400 -> 256544 | K65: 641.36 | L65: 96204 | M65: =J65-L65 -> 160340 | N65: 205.76 | O65: 82304 | P65: 0 | Q65: 0
B66: 新塘社区 | C66: 朱宝强 | D66: 油菜 | E66: 18 | F66: 18 | G66: 0 | H66: 7200 | I66: 0 | J66: 0 | K66: 0 | L66: 0 | M66: 0 | N66: 0 | O66: 0 | P66: 18 | Q66: 7200
B67: 周巷社区 | C67: 江防震 | D67: 油菜 | E67: 120 | F67: 120 | G67: 0 | H67: 48000 | I67: 0 | J67: 0 | K67: 0 | L67: 0 | M67: 0 | N67: 120 | O67: 48000 | P67: 0 | Q67: 0
B68: 周巷社区 | C68: 孔卫国 | D68: 油菜 | E68: 93.06 | F68: 93.06 | G68: 0 | H68: 37224 | I68: 0 | J68: 0 | K68: 0 | L68: 0 | M68: 0 | N68: 93.06 | O68: 37224 | P68: 0 | Q68: 0
B69: 周巷社区 | C69: 尹桂生 | D69: 油菜 | E69: 15 | F69: 15 | G69: 0 | H69: 6000 | I69: 0 | J69: 0 | K69: 0 | L69: 0 | M69: 0 | N69: 0 | O69: 0 | P69: 15 | Q69: 6000
B70: 小计 | E70: =SUM(E40:E69) -> 4721.49 | F70: =SUM(F40:F69) -> 4449.85 | G70: =SUM(G40:G69) -> 271.64 | H70: =SUM(H40:H69) -> 1779940 | I70: =SUM(I40:I69) -> 2165.83 | J70: 866332 | K70: 2438.95 | L70: 365842.5 | M70: 500489.5 | N70: 1793.53 | O70: 717412 | P70: 490.49 | Q70: 196196
A71: 周市镇 | B71: 东方村 | C71: 昆山市周市镇东方村农地股份专业合作社 | D71: 油菜 | E71: 200 | F71: 200 | G71: 0 | H71: =F71*400 -> 80000 | I71: 122 | J71: =I71*400 -> 48800 | K71: 122 | L71: =K71*150 -> 18300 | M71: =J71-L71 -> 30500 | N71: 78 | O71: =N71*400 -> 31200 | P71: =F71-I71-N71 -> 0 | Q71: =P71*400 -> 0
B72: 东明村 | C72: 昆山市周市镇东明村农地股份专业合作社 | D72: 油菜 | E72: 103 | F72: 92.85 | G72: 10.15 | H72: 37140 | I72: 92.85 | J72: =F72*400 -> 37140 | K72: 103 | L72: =K72*150 -> 15450 | M72: 21690 | N72: 0 | O72: 0 | P72: 0 | Q72: 0
B73: 平庄村 | C73: 昆山市周市镇平庄村农地股份专业合作社 | D73: 油菜 | E73: 35 | F73: 7.08 | G73: 27.92 | H73: 2832 | I73: 7.08 | J73: 2832 | K73: 35 | L73: =K73*150 -> 5250 | M73: -2418 | N73: 0 | O73: 0 | P73: 0 | Q73: 0
B74: 市北村 | C74: 昆山市周市镇市北村农地股份专业合作社 | D74: 油菜 | E74: 417 | F74: 357.53 | G74: 59.47 | H74: 143012 | I74: 300 | J74: 120000 | K74: 300 | L74: 45000 | M74: 75000 | N74: 0 | O74: 0 | P74: 57.53 | Q74: 23012
B75: 小泾村 | C75: 昆山市周市镇小泾村农地股份专业合作社 | D75: 油菜 | E75: 40 | F75: 16.15 | G75: 23.85 | H75: 6460 | I75: 0 | J75: 0 | K75: 0 | L75: 0 | M75: 0 | N75: 0 | O75: 0 | P75: 16.15 | Q75: 6460
B76: 永共村 | C76: 昆山市周市镇永共村股份经济合作社 | D76: 油菜 | E76: 90 | F76: 90 | G76: 0 | H76: 36000 | I76: 90 | J76: =I76*400 -> 36000 | K76: 90 | L76: 13500 | M76: =J76-L76 -> 22500 | N76: 0 | O76: 0 | P76: 0 | Q76: 0
B77: 珠泾村 | C77: 昆山市周市镇珠泾村股份经济合作社 | D77: 油菜 | E77: 256.1 | F77: 256.1 | G77: 0 | H77: 102440 | I77: 0 | J77: 0 | K77: 0 | L77: 0 | M77: 0 | N77: 256.1 | O77: 102440 | P77: 0 | Q77: 0
B78: 小计 | E78: =SUM(E71:E77) -> 1141.1 | F78: =SUM(F71:F77) -> 1019.71 | G78: =SUM(G71:G77) -> 121.39 | H78: =SUM(H71:H77) -> 407884 | I78: =SUM(I71:I77) -> 611.93 | J78: 244772 | K78: 650 | L78: 97500 | M78: =SUM(M71:M77) -> 147272 | N78: =SUM(N71:N77) -> 334.1 | O78: =SUM(O71:O77) -> 133640 | P78: =SUM(P71:P77) -> 73.68 | Q78: =SUM(Q71:Q77) -> 29472
A79: 陆家镇 | B79: 陈巷社区 | C79: 昆山市乐佳农业发展有限公司 | D79: 油菜 | E79: 1031 | F79: 966 | G79: 65 | H79: =F79*400 -> 386400 | I79: 966 | J79: =I79*400 -> 386400 | K79: 1031 | L79: 154650 | M79: =J79-L79 -> 231750 | N79: 0 | O79: 0 | P79: 0 | Q79: 0
B80: 泗桥社区 | C80: 昆山市乐佳农业发展有限公司 | D80: 油菜 | E80: 478 | F80: 478 | G80: 0 | H80: =F80*400 -> 191200 | I80: 478 | J80: =I80*400 -> 191200 | K80: 478 | L80: 71700 | M80: =J80-L80 -> 119500 | N80: 0 | O80: 0 | P80: 0 | Q80: 0
B81: 小计 | E81: =SUM(E79:E80) -> 1509 | F81: 1444 | G81: 65 | H81: 577600 | I81: 1444 | J81: 577600 | K81: 1509 | L81: 226350 | M81: =SUM(M79:M80) -> 351250 | N81: 0 | O81: 0 | P81: 0 | Q81: 0
A82: 巴城镇 | B82: 绰墩山村 | C82: 昆山市巴城镇绰墩山村农地股份专业合作社 | D82: 其他 | E82: 370 | F82: 339.47 | G82: 30.53 | H82: =F82*400 -> 135788 | I82: 0 | J82: =I82*400 -> 0 | K82: 0 | L82: =I82*150 -> 0 | M82: =J82-L82 -> 0 | N82: 0 | O82: =N82*400 -> 0 | P82: =F82-I82-N82 -> 339.47 | Q82: =P82*400 -> 135788
B83: 绰墩山村 | C83: 苏州苏垦现代农业发展有限公司 | D83: 油菜 | E83: 637 | F83: 637 | G83: 0 | H83: 254800 | I83: 637 | J83: 254800 | K83: 637 | L83: =K83*150 -> 95550 | M83: 159250 | N83: 0 | O83: 0 | P83: 0 | Q83: 0
B84: 东阳澄湖村 | C84: 嵇为书 | D84: 油菜 | E84: 50 | F84: 42.77 | G84: 7.23 | H84: 17108 | I84: 0 | J84: 0 | K84: =J84*400 -> 0 | L84: =K84*150 -> 0 | M84: 0 | N84: 42.77 | O84: 17108 | P84: 0 | Q84: 0
B85: 东阳澄湖村 | C85: 郑良军 | D85: 油菜 | E85: 30 | F85: 30 | G85: 0 | H85: 12000 | I85: 0 | J85: 0 | K85: 0 | L85: 0 | M85: 0 | N85: 30 | O85: 12000 | P85: 0 | Q85: 0
B86: 方港村 | C86: 昆山市巴城镇毛许种植园 | D86: 油菜 | E86: 50 | F86: 50 | G86: 0 | H86: 20000 | I86: 0 | J86: 0 | K86: 0 | L86: 0 | M86: 0 | N86: 50 | O86: 20000 | P86: 0 | Q86: 0
B87: 凤凰村 | C87: 昆山市巴城镇毛许种植园 | D87: 其他 | E87: 150 | F87: 150 | G87: 0 | H87: 60000 | I87: 0 | J87: 0 | K87: 0 | L87: 0 | M87: 0 | N87: 0 | O87: 0 | P87: 150 | Q87: 60000
B88: 凤凰村 | C88: 昆山市巴城镇毛许种植园 | D88: 油菜 | E88: 350 | F88: 348.96 | G88: 1.04 | H88: 139584 | I88: 0 | J88: 0 | K88: 0 | L88: 0 | M88: 0 | N88: 348.96 | O88: 139584 | P88: 0 | Q88: 0
B89: 华社村 | C89: 昆山市巴城镇毛许种植园 | D89: 油菜 | E89: 30 | F89: 25.12 | G89: 4.88 | H89: 10048 | I89: 0 | J89: 0 | K89: 0 | L89: 0 | M89: 0 | N89: 25.12 | O89: 10048 | P89: 0 | Q89: 0
B90: 环湖村 | C90: 昆山市巴城镇环湖农民劳务专业合作社 | D90: 油菜 | E90: 15 | F90: 15 | G90: 0 | H90: 6000 | I90: 0 | J90: 0 | K90: 0 | L90: 0 | M90: 0 | N90: 15 | O90: 6000 | P90: 0 | Q90: 0
B91: 环湖村 | C91: 昆山市巴城镇毛许种植园 | D91: 油菜 | E91: 80 | F91: 73.77 | G91: 6.23 | H91: 29508 | I91: 0 | J91: 0 | K91: 0 | L91: 0 | M91: 0 | N91: 73.77 | O91: 29508 | P91: 0 | Q91: 0
B92: 环湖村 | C92: 昆山市巴城镇农地股份专业合作联社 | D92: 其他 | E92: 432 | F92: 362.28 | G92: 69.72 | H92: 144912 | I92: 0 | J92: 0 | K92: 0 | L92: 0 | M92: 0 | N92: 0 | O92: 0 | P92: 362.28 | Q92: 144912
B93: 茅沙塘村 | C93: 郑国标 | D93: 油菜 | E93: 100 | F93: 100 | G93: 0 | H93: 40000 | I93: 0 | J93: 0 | K93: 0 | L93: 0 | M93: 0 | N93: 100 | O93: 40000 | P93: 0 | Q93: 0
B94: 武城村 | C94: 昆山市巴城镇毛许种植园 | D94: 油菜 | E94: 60 | F94: 50.18 | G94: 9.82 | H94: 20072 | I94: 0 | J94: 0 | K94: 0 | L94: 0 | M94: 0 | N94: 50.18 | O94: 20072 | P94: 0 | Q94: 0
B95: 武神潭村 | C95: 蔡科成 | D95: 油菜 | E95: 100 | F95: 61.66 | G95: 38.34 | H95: 24664 | I95: 0 | J95: 0 | K95: 0 | L95: 0 | M95: 0 | N95: 61.66 | O95: 24664 | P95: 0 | Q95: 0
B96: 武神潭村 | C96: 苏州苏垦现代农业发展有限公司 | D96: 油菜 | E96: 69 | F96: 69 | G96: 0 | H96: 27600 | I96: 69 | J96: 27600 | K96: 69 | L96: 10350 | M96: 17250 | N96: 0 | O96: 0 | P96: 0 | Q96: 0
B97: 新开河村 | C97: 苏州苏垦现代农业发展有限公司 | D97: 油菜 | E97: 69 | F97: 69 | G97: 0 | H97: 27600 | I97: 69 | J97: 27600 | K97: 69 | L97: 10350 | M97: 17250 | N97: 0 | O97: 0 | P97: 0 | Q97: 0
B98: 小计 | E98: =SUM(E82:E97) -> 2592 | F98: =SUM(F82:F97) -> 2424.21 | G98: =SUM(G82:G97) -> 167.79 | H98: =SUM(H82:H97) -> 969684 | I98: =SUM(I82:I97) -> 775 | J98: 310000 | K98: 775 | L98: 116250 | M98: 193750 | N98: 797.46 | O98: 318984 | P98: 851.75 | Q98: 340700
A99: 千灯镇 | B99: 高效农业 | C99: 昆山千灯高效农业综合开发示范有限公司 | D99: 油菜 | E99: 400 | F99: 365.75 | G99: 34.25 | H99: =F99*400 -> 146300 | I99: 365.75 | J99: =I99*400 -> 146300 | K99: 400 | L99: =K99*150 -> 60000 | M99: =J99-L99 -> 86300 | N99: 0 | O99: =N99*400 -> 0 | P99: =F99-I99-N99 -> 0 | Q99: =P99*400 -> 0
B100: 前进村 | C100: 昆山市千灯镇前进村农地股份专业合作社 | D100: 油菜 | E100: 964.84 | F100: 964.84 | G100: 0 | H100: =F100*400 -> 385936 | I100: 0 | J100: 0 | K100: 0 | L100: 0 | M100: 0 | N100: 964.84 | O100: 385936 | P100: 0 | Q100: 0
B101: 陶桥村 | C101: 昆山市千灯镇陶桥村农地股份专业合作社 | D101: 油菜 | E101: 542.2 | F101: 542.2 | G101: 0 | H101: =F101*400 -> 216880 | I101: 87.7 | J101: =I101*400 -> 35080 | K101: 87.7 | L101: =K101*150 -> 13155 | M101: =J101-L101 -> 21925 | N101: 400 | O101: 160000 | P101: 54.5 | Q101: 21800
B102: 支浦村 | C102: 孙桃林 | D102: 油菜 | E102: 307 | F102: 307 | G102: 0 | H102: =F102*400 -> 122800 | I102: 307 | J102: =I102*400 -> 122800 | K102: 307 | L102: =K102*150 -> 46050 | M102: =J102-L102 -> 76750 | N102: 0 | O102: 0 | P102: 0 | Q102: 0
B103: 小计 | E103: =SUM(E99:E102) -> 2214.04 | F103: =SUM(F99:F102) -> 2179.79 | G103: =SUM(G99:G102) -> 34.25 | H103: =SUM(H99:H102) -> 871916 | I103: =SUM(I99:I102) -> 760.45 | J103: 304180 | K103: 794.7 | L103: 119205 | M103: 184975 | N103: 1364.84 | O103: 545936 | P103: 54.5 | Q103: 21800
A104: 淀山湖镇 | B104: 安上村 | C104: 柴军伟 | D104: 其他 | E104: 70 | F104: 70 | G104: 0 | H104: =F104*400 -> 28000 | I104: 0 | J104: 0 | K104: 0 | L104: 0 | M104: 0 | N104: 0 | O104: =N104*400 -> 0 | P104: =F104-I104-N104 -> 70 | Q104: =P104*400 -> 28000
B105: 安上村 | C105: 胡胜利 | D105: 其他 | E105: 37 | F105: 37 | G105: 0 | H105: 14800 | I105: 0 | J105: 0 | K105: 0 | L105: 0 | M105: 0 | N105: 0 | O105: 0 | P105: 37 | Q105: 14800
B106: 安上村 | C106: 潘兰根 | D106: 其他 | E106: 90 | F106: 90 | G106: 0 | H106: 36000 | I106: 0 | J106: 0 | K106: 0 | L106: 0 | M106: 0 | N106: 0 | O106: 0 | P106: 90 | Q106: 36000
B107: 安上村 | C107: 潘龙生 | D107: 其他 | E107: 30 | F107: 26.5 | G107: 3.5 | H107: 10600 | I107: 0 | J107: 0 | K107: 0 | L107: 0 | M107: 0 | N107: 0 | O107: 0 | P107: 26.5 | Q107: 10600
B108: 安上村 | C108: 沈阿五 | D108: 其他 | E108: 175.96 | F108: 175.96 | G108: 0 | H108: 70384 | I108: 0 | J108: 0 | K108: 0 | L108: 0 | M108: 0 | N108: 0 | O108: 0 | P108: 175.96 | Q108: 70384
B109: 安上村 | C109: 沈小林 | D109: 其他 | E109: 112.41 | F109: 112.41 | G109: 0 | H109: 44964 | I109: 0 | J109: 0 | K109: 0 | L109: 0 | M109: 0 | N109: 0 | O109: 0 | P109: 112.41 | Q109: 44964
B110: 安上村 | C110: 汪章文 | D110: 其他 | E110: 150.95 | F110: 150.95 | G110: 0 | H110: 60380 | I110: 0 | J110: 0 | K110: 0 | L110: 0 | M110: 0 | N110: 0 | O110: 0 | P110: 150.95 | Q110: 60380
B111: 安上村 | C111: 王炳其 | D111: 其他 | E111: 155.5 | F111: 155.5 | G111: 0 | H111: 62200 | I111: 0 | J111: 0 | K111: 0 | L111: 0 | M111: 0 | N111: 0 | O111: 0 | P111: 155.5 | Q111: 62200
B112: 安上村 | C112: 顾克强 | D112: 油菜 | E112: 30 | F112: 30 | G112: 0 | H112: 12000 | I112: 30 | J112: =I112*400 -> 12000 | K112: 30 | L112: =K112*150 -> 4500 | M112: =J112-L112 -> 7500 | N112: 0 | O112: 0 | P112: 0 | Q112: 0
B113: 安上村 | C113: 王春云 | D113: 油菜 | E113: 126.32 | F113: 126.32 | G113: 0 | H113: 50528 | I113: 0 | J113: 0 | K113: 0 | L113: =K113*150 -> 0 | M113: 0 | N113: 126.32 | O113: 50528 | P113: 0 | Q113: 0
B114: 晟泰村 | C114: 昆山市淀山湖镇晟泰村农地股份专业合作社 | D114: 其他 | E114: 195.64 | F114: 195.64 | G114: 0 | H114: 78256 | I114: 0 | J114: 0 | K114: 0 | L114: 0 | M114: 0 | N114: 0 | O114: 0 | P114: 195.64 | Q114: 78256
B115: 度城村 | C115: 金彩英 | D115: 油菜 | E115: 184.58 | F115: 184.58 | G115: 0 | H115: 73832 | I115: 0 | J115: 0 | K115: 0 | L115: 0 | M115: 0 | N115: 184.58 | O115: 73832 | P115: 0 | Q115: 0
B116: 度城村 | C116: 夏玲妹 | D116: 油菜 | E116: 116.12 | F116: 116.12 | G116: 0 | H116: 46448 | I116: 0 | J116: 0 | K116: 0 | L116: 0 | M116: 0 | N116: 116.12 | O116: 46448 | P116: 0 | Q116: 0
B117: 民和村 | C117: 蒋卫峰 | D117: 其他 | E117: 163.15 | F117: 163.15 | G117: 0 | H117: 65260 | I117: 0 | J117: 0 | K117: 0 | L117: 0 | M117: 0 | N117: 0 | O117: 0 | P117: 163.15 | Q117: 65260
B118: 民和村 | C118: 王克 | D118: 其他 | E118: 59.54 | F118: 59.54 | G118: 0 | H118: 23816 | I118: 0 | J118: 0 | K118: 0 | L118: 0 | M118: 0 | N118: 0 | O118: 0 | P118: 59.54 | Q118: 23816
B119: 民和村 | C119: 张培发 | D119: 其他 | E119: 43.23 | F119: 43.23 | G119: 0 | H119: 17292 | I119: 0 | J119: 0 | K119: 0 | L119: 0 | M119: 0 | N119: 0 | O119: 0 | P119: 43.23 | Q119: 17292
B120: 民和村 | C120: 朱刚 | D120: 其他 | E120: 96.58 | F120: 96.58 | G120: 0 | H120: 38632 | I120: 0 | J120: 0 | K120: 0 | L120: 0 | M120: 0 | N120: 0 | O120: 0 | P120: 96.58 | Q120: 38632
B121: 民和村 | C121: 顾克强 | D121: 油菜 | E121: 108 | F121: 108 | G121: 0 | H121: 43200 | I121: 108 | J121: =I121*400 -> 43200 | K121: 108 | L121: 16200 | M121: =J121-L121 -> 27000 | N121: 0 | O121: 0 | P121: 0 | Q121: 0
B122: 双护村 | C122: 昆山科伟农业科技有限公司 | D122: 油菜 | E122: 58.68 | F122: 44.2 | G122: 14.48 | H122: 17680 | I122: 44.2 | J122: =I122*400 -> 17680 | K122: 58.68 | L122: 8802 | M122: =J122-L122 -> 8878 | N122: 0 | O122: 0 | P122: 0 | Q122: 0
B123: 双护村 | C123: 朱正风 | D123: 油菜 | E123: 88.68 | F123: 78.84 | G123: 9.84 | H123: 31536 | I123: 78.84 | J123: =I123*400 -> 31536 | K123: 88.68 | L123: 13302 | M123: =J123-L123 -> 18234 | N123: 0 | O123: 0 | P123: =F123-I123-N123 -> 0 | Q123: 0
B124: 兴复村 | C124: 陈大夯 | D124: 其他 | E124: 15 | F124: 9.78 | G124: 5.22 | H124: 3912 | I124: 0 | J124: =I124*150 -> 0 | K124: =J124*150 -> 0 | L124: 0 | M124: =L124*150 -> 0 | N124: 0 | O124: 0 | P124: 9.78 | Q124: 3912
B125: 兴复村 | C125: 钟建新 | D125: 其他 | E125: 43.06 | F125: 43.06 | G125: 0 | H125: 17224 | I125: 0 | J125: 0 | K125: 0 | L125: 0 | M125: 0 | N125: 0 | O125: 0 | P125: 43.06 | Q125: 17224
B126: 兴复村 | C126: 何苗荣 | D126: 油菜 | E126: 73.27 | F126: 73.27 | G126: 0 | H126: 29308 | I126: 0 | J126: 0 | K126: 0 | L126: 0 | M126: 0 | N126: 73.27 | O126: 29308 | P126: 0 | Q126: 0
B127: 兴复村 | C127: 孙玉虎 | D127: 油菜 | E127: 73.56 | F127: 73.56 | G127: 0 | H127: 29424 | I127: 0 | J127: 0 | K127: 0 | L127: 0 | M127: 0 | N127: 50 | O127: 20000 | P127: 23.56 | Q127: 9424
B128: 兴复村 | C128: 张建龙 | D128: 油菜 | E128: 32.44 | F128: 32.44 | G128: 0 | H128: 12976 | I128: 32.44 | J128: =I128*400 -> 12976 | K128: 32.44 | L128: 4866 | M128: =J128-L128 -> 8110 | N128: 0 | O128: 0 | P128: 0 | Q128: 0
B129: 兴复村 | C129: 朱青 | D129: 油菜 | E129: 66.3 | F129: 43.8 | G129: 22.5 | H129: 17520 | I129: 0 | J129: 0 | K129: 0 | L129: 0 | M129: 0 | N129: 0 | O129: 0 | P129: 43.8 | Q129: 17520
B130: 永新村 | C130: 昆山市淀山湖镇永新村股份经济合作社 | D130: 其他 | E130: 467.92 | F130: 467.92 | G130: 0 | H130: 187168 | I130: 0 | J130: 0 | K130: 0 | L130: 0 | M130: 0 | N130: 0 | O130: 0 | P130: 467.92 | Q130: 187168
B131: 永新村 | C131: 昆山市淀山湖镇永新村农地股份专业合作社 | D131: 其他 | E131: 2113.19 | F131: 2113.19 | G131: 0 | H131: 845276 | I131: 0 | J131: 0 | K131: 0 | L131: 0 | M131: 0 | N131: 0 | O131: 0 | P131: 2113.19 | Q131: 845276
B132: 永新村 | C132: 昆山市淀山湖种子站 | D132: 其他 | E132: 1.4 | F132: 1.4 | G132: 0 | H132: 560 | I132: 0 | J132: 0 | K132: 0 | L132: 0 | M132: 0 | N132: 0 | O132: 0 | P132: 1.4 | Q132: 560
B133: 永新村 | C133: 昆山市淀山湖镇永新村股份经济合作社 | D133: 油菜 | E133: 22.81 | F133: 22.81 | G133: 0 | H133: 9124 | I133: 0 | J133: 0 | K133: 0 | L133: 0 | M133: 0 | N133: 0 | O133: 0 | P133: 22.81 | Q133: 9124
B134: 永新村 | C134: 昆山市淀山湖镇永新村农地股份专业合作社 | D134: 油菜 | E134: 181.56 | F134: 181.56 | G134: 0 | H134: 72624 | I134: 0 | J134: 0 | K134: 0 | L134: 0 | M134: 0 | N134: 181.56 | O134: 72624 | P134: 0 | Q134: 0
B135: 永新村 | C135: 昆山市淀山湖种子站 | D135: 油菜 | E135: 0.5 | F135: 0.5 | G135: 0 | H135: 200 | I135: 0 | J135: 0 | K135: 0 | L135: 0 | M135: 0 | N135: 0 | O135: 0 | P135: 0.5 | Q135: 200
B136: 小计 | E136: =SUM(E104:E135) -> 5183.35 | F136: =SUM(F104:F135) -> 5127.81 | G136: =SUM(G104:G135) -> 55.54 | H136: =SUM(H104:H135) -> 2051124 | I136: =SUM(I104:I135) -> 293.48 | J136: 117392 | K136: 317.8 | L136: 47670 | M136: 69722 | N136: 731.85 | O136: 292740 | P136: 4102.48 | Q136: 1640992
A137: 周庄镇 | B137: 复兴村 | C137: 丁华 | D137: 油菜 | E137: 207.8 | F137: 207.8 | G137: 0 | H137: =F137*400 -> 83120 | I137: 60 | J137: =I137*400 -> 24000 | K137: 60 | L137: =K137*150 -> 9000 | M137: =J137-L137 -> 15000 | N137: 147.8 | O137: =N137*400 -> 59120 | P137: =F137-I137-N137 -> 0 | Q137: =P137*400 -> 0
B138: 高勇村 | C138: 盛春林 | D138: 其他 | E138: 40 | F138: 40 | G138: 0 | H138: 16000 | I138: 0 | J138: 0 | K138: 0 | L138: =I138*150 -> 0 | M138: 0 | N138: 0 | O138: 0 | P138: 40 | Q138: 16000
B139: 龙凤村 | C139: 怀全荣 | D139: 油菜 | E139: 103.9 | F139: 103.9 | G139: 0 | H139: 41560 | I139: 60 | J139: 24000 | K139: 60 | L139: 9000 | M139: 15000 | N139: 0 | O139: 0 | P139: 43.9 | Q139: 17560
B140: 龙亭村 | C140: 蒋元珍 | D140: 油菜 | E140: 145.62 | F140: 107.13 | G140: 38.49 | H140: 42852 | I140: 50 | J140: 20000 | K140: 50 | L140: 7500 | M140: 12500 | N140: 0 | O140: 0 | P140: 57.13 | Q140: 22852
B141: 龙亭村 | C141: 昆山丰产坊农业专业合作社 | D141: 其他 | E141: 215.64 | F141: 215.64 | G141: 0 | H141: 86256 | I141: 0 | J141: 0 | K141: 0 | L141: 0 | M141: 0 | N141: 0 | O141: 0 | P141: 215.64 | Q141: 86256
B142: 龙亭村 | C142: 昆山天花荡农业发展有限公司 | D142: 油菜 | E142: 14.91 | F142: 14.91 | G142: 0 | H142: 5964 | I142: 0 | J142: 0 | K142: 0 | L142: 0 | M142: 0 | N142: 0 | O142: 0 | P142: 14.91 | Q142: 5964
B143: 龙亭村 | C143: 沈小红 | D143: 油菜 | E143: 136.47 | F143: 136.47 | G143: 0 | H143: 54588 | I143: 110 | J143: 44000 | K143: 110 | L143: 16500 | M143: 27500 | N143: 0 | O143: 0 | P143: 26.47 | Q143: 10588
B144: 祁浜村 | C144: 韩春生 | D144: 油菜 | E144: 169.64 | F144: 127.59 | G144: 42.05 | H144: 51036 | I144: 0 | J144: 0 | K144: 0 | L144: 0 | M144: 0 | N144: 127.59 | O144: 51036 | P144: 0 | Q144: 0
B145: 祁浜村 | C145: 昆山稻乡源生态农业专业合作社 | D145: 油菜 | E145: 214.92 | F145: 214.92 | G145: 0 | H145: 85968 | I145: 100 | J145: 40000 | K145: 100 | L145: 15000 | M145: 25000 | N145: 114.92 | O145: 45968 | P145: 0 | Q145: 0
B146: 祁浜村 | C146: 昆山水乡周庄乡村旅游服务有限公司 | D146: 油菜 | E146: 20.8 | F146: 20.8 | G146: 0 | H146: 8320 | I146: 20.8 | J146: 8320 | K146: 20.8 | L146: 3120 | M146: 5200 | N146: 0 | O146: 0 | P146: 0 | Q146: 0
B147: 祁浜村 | C147: 吴阿三 | D147: 油菜 | E147: 190.46 | F147: 190.46 | G147: 0 | H147: 76184 | I147: 0 | J147: 0 | K147: 0 | L147: 0 | M147: 0 | N147: 190.46 | O147: 76184 | P147: 0 | Q147: 0
B148: 全旺村 | C148: 昆山市周庄镇全旺村股份经济合作社 | D148: 油菜 | E148: 63.9 | F148: 63.9 | G148: 0 | H148: 25560 | I148: 0 | J148: 0 | K148: 0 | L148: 0 | M148: 0 | N148: 63.9 | O148: 25560 | P148: 0 | Q148: 0
B149: 双庙村 | C149: 吕阳 | D149: 油菜 | E149: 263.85 | F149: 263.85 | G149: 0 | H149: 105540 | I149: 0 | J149: 0 | K149: 0 | L149: 0 | M149: 0 | N149: 263.85 | O149: 105540 | P149: 0 | Q149: 0
B150: 小计 | E150: =SUM(E137:E149) -> 1787.91 | F150: =SUM(F137:F149) -> 1707.37 | G150: =SUM(G137:G149) -> 80.54 | H150: =SUM(H137:H149) -> 682948 | I150: =SUM(I137:I149) -> 400.8 | J150: 160320 | K150: 400.8 | L150: 60120 | M150: 100200 | N150: 908.52 | O150: 363408 | P150: 398.05 | Q150: 159220
A151: 锦溪镇 | B151: 顾家浜村 | C151: 昆山市锦溪镇顾家浜农地股份专业合作社 | D151: 其他 | E151: 60 | F151: 60 | G151: 0 | H151: =F151*400 -> 24000 | I151: 0 | J151: 0 | K151: 0 | L151: 0 | M151: 0 | N151: 0 | O151: =N151*400 -> 0 | P151: =F151-I151-N151 -> 60 | Q151: =P151*400 -> 24000
B152: 顾家浜村 | C152: 昆山市锦溪镇顾家浜农地股份专业合作社 | D152: 油菜 | E152: 90 | F152: 65.26 | G152: 24.74 | H152: 26104 | I152: 0 | J152: 0 | K152: 0 | L152: 0 | M152: 0 | N152: 65.26 | O152: 26104 | P152: 0 | Q152: 0
B153: 红霞村 | C153: 昆山市锦溪镇红霞村农地股份专业合作社 | D153: 其他 | E153: 150 | F153: 120.89 | G153: 29.11 | H153: 48356 | I153: 0 | J153: 0 | K153: 0 | L153: 0 | M153: 0 | N153: 0 | O153: 0 | P153: 120.89 | Q153: 48356
B154: 计家墩村 | C154: 昆山市锦溪镇计家墩村农地股份专业合作社 | D154: 其他 | E154: 36.5 | F154: 30.25 | G154: 6.25 | H154: 12100 | I154: 0 | J154: 0 | K154: 0 | L154: 0 | M154: 0 | N154: 0 | O154: 0 | P154: 30.25 | Q154: 12100
B155: 计家墩村 | C155: 昆山市锦溪镇计家墩村农地股份专业合作社 | D155: 油菜 | E155: 56.63 | F155: 36.36 | G155: 20.27 | H155: 14544 | I155: 0 | J155: 0 | K155: 0 | L155: 0 | M155: 0 | N155: 36.36 | O155: 14544 | P155: 0 | Q155: 0
B156: 陆泾村 | C156: 昆山市锦溪镇陆泾村农地股份专业合作社 | D156: 其他 | E156: 120 | F156: 80.07 | G156: 39.93 | H156: 32028 | I156: 0 | J156: 0 | K156: 0 | L156: 0 | M156: 0 | N156: 0 | O156: 0 | P156: 80.07 | Q156: 32028
B157: 孟子浜村 | C157: 昆山市锦溪镇孟子浜村农地股份专业合作社 | D157: 油菜 | E157: 359 | F157: 359 | G157: 0 | H157: 143600 | I157: 150 | J157: =I157*400 -> 60000 | K157: 150 | L157: =I157*150 -> 22500 | M157: =J157-L157 -> 37500 | N157: 209 | O157: 83600 | P157: 0 | Q157: 0
B158: 虬泽村 | C158: 昆山市锦溪镇虬泽村农地股份专业合作社 | D158: 其他 | E158: 50 | F158: 50 | G158: 0 | H158: 20000 | I158: 0 | J158: 0 | K158: 0 | L158: 0 | M158: 0 | N158: 0 | O158: 0 | P158: 50 | Q158: 20000
B159: 三联村 | C159: 昆山市锦溪镇三联村农地股份专业合作社 | D159: 油菜 | E159: 441 | F159: 374.59 | G159: 66.41 | H159: 149836 | I159: 200 | J159: 80000 | K159: 200 | L159: 30000 | M159: 50000 | N159: 174.59 | O159: 69836 | P159: 0 | Q159: 0
B160: 盛塘村 | C160: 昆山市锦溪镇盛塘村农地股份专业合作社 | D160: 油菜 | E160: 251 | F160: 234.18 | G160: 16.82 | H160: 93672 | I160: 100 | J160: 40000 | K160: 100 | L160: 15000 | M160: 25000 | N160: 134.18 | O160: 53672 | P160: 0 | Q160: 0
B161: 狭港村 | C161: 昆山市锦溪镇狭港村农地股份专业合作社 | D161: 油菜 | E161: 70 | F161: 24.74 | G161: 45.26 | H161: 9896 | I161: 0 | J161: 0 | K161: 0 | L161: 0 | M161: 0 | N161: 0 | O161: 0 | P161: 24.74 | Q161: 9896
B162: 袁甸村 | C162: 昆山市锦溪镇袁甸村农地股份专业合作社 | D162: 其他 | E162: 200 | F162: 200 | G162: 0 | H162: 80000 | I162: 0 | J162: 0 | K162: 0 | L162: 0 | M162: 0 | N162: 0 | O162: 0 | P162: 200 | Q162: 80000
B163: 长云村 | C163: 昆山市锦溪镇长云村农地股份专业合作社 | D163: 其他 | E163: 199.75 | F163: 0 | G163: 199.75 | H163: 0 | I163: 0 | J163: 0 | K163: 0 | L163: 0 | M163: 0 | N163: 0 | O163: 0 | P163: 0 | Q163: 0
B164: 长云村 | C164: 昆山市锦溪镇长云村农地股份专业合作社 | D164: 油菜 | E164: 200 | F164: 200 | G164: 0 | H164: 80000 | I164: 100 | J164: =I164*400 -> 40000 | K164: 100 | L164: =I164*150 -> 15000 | M164: =J164-L164 -> 25000 | N164: 100 | O164: 40000 | P164: 0 | Q164: 0
B165: 朱浜村 | C165: 昆山市锦溪镇朱浜村农地股份专业合作社 | D165: 其他 | E165: 150 | F165: 68.29 | G165: 81.71 | H165: 27316 | I165: 0 | J165: 0 | K165: 0 | L165: 0 | M165: 0 | N165: 0 | O165: 0 | P165: 68.29 | Q165: 27316
B166: 朱浜村 | C166: 昆山市锦溪镇朱浜村农地股份专业合作社 | D166: 油菜 | E166: 176 | F166: 4.78 | G166: 171.22 | H166: 1912 | I166: 0 | J166: =I166*400 -> 0 | K166: 0 | L166: =I166*150 -> 0 | M166: =J166-L166 -> 0 | N166: 0 | O166: 0 | P166: 4.78 | Q166: 1912
B167: 小计 | E167: =SUM(E151:E166) -> 2609.88 | F167: =SUM(F151:F166) -> 1908.41 | G167: =SUM(G151:G166) -> 701.47 | H167: =SUM(H151:H166) -> 763364 | I167: =SUM(I151:I166) -> 550 | J167: 220000 | K167: 550 | L167: 82500 | M167: 137500 | N167: 719.39 | O167: 287756 | P167: 639.02 | Q167: 255608
A168: 总计 | E168: =E150+E78+E70+E103+E81+E25+E167+E39+E37+E136+E98 -> 26766.25 | F168: =F150+F78+F70+F103+F81+F25+F167+F39+F37+F136+F98 -> 25046.01 | G168: =G150+G78+G70+G103+G81+G25+G167+G39+G37+G136+G98 -> 1720.24 | H168: =H150+H78+H70+H103+H81+H25+H167+H39+H37+H136+H98 -> 10018404 | I168: =I150+I78+I70+I103+I81+I25+I167+I39+I37+I136+I98 -> 9040 | J168: 3616000 | K168: 9016.76 | L168: 1352514 | M168: 2263486 | N168: 9300 | O168: 3720000 | P168: 6706.01 | Q168: 2682404
